Cogmind - Beta 13 @@@ ROGUE MODE // 2024.02.27 @ 20:52:27 Player: Scared Dad Result: Destroyed self with Subdweller Shrapnel Launcher Performance ------------- Evolutions (0) 0 Regions Visited (3) 600 Robots Destroyed (23) 115 Value Destroyed (604) 604 Prototype IDs (1) 20 Alien Tech Used (0) 0 Bonus (0) 0 TOTAL SCORE: 1339 Bonus ------- None Cogmind --------- Core Integrity 0/250 Matter 278/300 Energy 199/200 System Corruption 0% Temperature Cool (0) Movement Rolling (110) Location -10/Subcaves Parts ------- > --- POWER (1) -------- Subdweller Power Source > --- PROPULSION (2) --- Subdweller Monowheel Subdweller Monowheel > --- UTILITY (2) ------ Scrap Shield > --- WEAPON (2) ------- Subdweller Machine Gun Subdweller Shrapnel Launcher > --- INVENTORY (5) ---- Subdweller Power Source Spiked Treads Subdweller Optics Scrap Shield Fragment (49) Scrap Shield Fragment (46) Peak State ------------ > --- POWER ------------ (None) > --- PROPULSION ------- Subdweller Monowheel Subdweller Monowheel > --- UTILITY ---------- Small Storage Unit Experimental Sensor Array > --- WEAPON ----------- EM Pulse Gun Light Assault Rifle > --- INVENTORY -------- Heat Sink Subdweller Optics Scrap Shield Subdweller Machine Gun Scrap Shield Fragment [Rating: 17] Favorites ----------- Power Ion Engine Engine Ion Engine Propulsion Light Treads Treads Light Treads Leg Aluminum Leg Wheel Subdweller Monowheel Utility Small Storage Unit Device Heat Sink Storage Small Storage Unit Protection Scrap Shield Weapon Particle Gun Energy Gun Particle Gun Ballistic Gun Light Assault Rifle Launcher Subdweller Shrapnel Launcher Build | -11 -10 -10 -10 ------- Run | Yrd Mat Min Sub Slots Evolved . | . . . . Power . | . . . . Propulsion . | . . . . Utility . | . . . . Weapon . | . . . . Parts Attached 27 | 6 4 5 12 Power 4 | 1 1 . 2 Engine 4 | 1 1 . 2 Core . | . . . . Reactor . | . . . . Propulsion 7 | 2 . 2 3 Treads 2 | 2 . . . Leg 2 | . . 2 . Wheel 3 | . . . 3 Hover . | . . . . Flight . | . . . . Utility 6 | 1 2 . 3 Device 3 | . 2 . 1 Storage 1 | 1 . . . Processor . | . . . . Hackware . | . . . . Protection 2 | . . . 2 Artifact . | . . . . Weapon 10 | 2 1 3 4 Energy Gun 6 | 1 1 3 1 Energy Cannon . | . . . . Ballistic Gun 3 | 1 . . 2 Ballistic Cannon . | . . . . Launcher 1 | . . . 1 Special Weapon . | . . . . Impact Weapon . | . . . . Slashing Weapon . | . . . . Piercing Weapon . | . . . . Special Melee Weapon . | . . . . Unidentified Prototypes 1 | . . . 1 Parts Lost 9 | . . 3 6 Power 1 | . . . 1 Propulsion 4 | . . 2 2 Utility 1 | . . . 1 Weapon 3 | . . 1 2 Highest Loss Streak 6 | . . 3 6 To Critical Strikes . | . . . . Average Slot Usage (%) 90 | . 93 98 80 Engine 13 | . 14 14 11 Treads 10 | . 28 . . Leg 9 | . . 26 5 Wheel 6 | . . . 19 Device 7 | . 7 14 . Storage 10 | . 14 14 4 Protection 3 | . . . 11 Energy Gun 15 | . 14 27 6 Ballistic Gun 8 | . 14 . 11 Launcher 3 | . . . 9 Naked Turns . | . . . . Heaviest Build 35 | 12 14 17 35 Greatest Support 40 | 40 40 20 40 Greatest Overweight (x) 2 | 1 . . 2 Average Overweight (x) . | . . . . Largest Inventory Capacity 8 | 8 8 8 8 Average Capacity 7 | 6 8 8 5 Most Carried 8 | 6 8 6 8 Average Carried 5 | 4 6 4 5 Final Capacity 8 | 8 8 8 5 Final Carried 6 | 6 6 6 5 Class Distribution -------------------- 70% | Mutant 29% | Subdweller-Mutant Dominant Class ---------------- Mutant | -10/Materials Mutant | -10/Mines Subdweller-Mutant | -10/Subcaves Resources | -11 -10 -10 -10 ----------- Run | Yrd Mat Min Sub Matter Collected 497 | 177 149 50 121 Remotely . | . . . . Salvage Created 678 | . 300 115 263 Parts 42 | . 16 6 20 Haulers Intercepted . | . . . . Recyclers Shooed . | . . . . Parts Field Recycled . | . . . . Retrieved Matter . | . . . . Parts Self-Destructed 5 | . . . 5 Prevented . | . . . . Kills | -11 -10 -10 -10 ------- Run | Yrd Mat Min Sub Combat Hostiles Destroyed 23 | . 11 5 7 Guns 23 | . 11 5 7 Classes Destroyed 3 | . 2 . 1 Swarmer 10 | . 6 3 1 Grunt 7 | . 5 2 . Subdweller 6 | . . . 6 Best Kill Streak 4 | . 4 2 4 Combat Bots Only 4 | . 4 2 4 Max Kills in Single Turn 2 | . 2 1 2 Gunslinging 1 | . 1 . 1 Exploded . | . . . . Melee . | . . . . Uniques/NPCs Destroyed . | . . . . Combat | -11 -10 -10 -10 -------- Run | Yrd Mat Min Sub Hostile Shots Fired 134 | . 62 29 43 Missed 34 | . 19 5 10 Damage Taken 1355 | . 393 250 712 Core 252 | . 41 54 157 Absorbed by Shields . | . . . . Core Remaining (%) 100 | 100 . . . Volleys Fired 59 | . 26 18 15 Largest 2 | . 2 2 2 Hottest 130 | . 70 130 130 Shots Fired 117 | . 52 35 30 Gun 116 | . 52 35 29 Cannon . | . . . . Launcher 1 | . . . 1 Special . | . . . . Kinetic 43 | . 26 8 9 Thermal 67 | . 26 27 14 Explosive . | . . . . Electromagnetic 7 | . . . 7 Robot Hit Streak 9 | . 7 9 7 Robot Miss Streak 4 | . 4 2 2 Penetration Max . | . . . . Secondary Targets 8 | . 3 2 3 Max Gunslinging Chain 1 | . 1 1 1 Shots Hit Robots 79 | . 31 26 22 Core Hits 38 | . 19 8 11 Critical Kills . | . . . . Critical Parts Destroyed 1 | . . 1 . Critical Strikes 7 | . 3 3 1 Burn 6 | . 3 2 1 Destroy 1 | . . 1 . Melee Attacks . | . . . . Impact . | . . . . Slashing . | . . . . Piercing . | . . . . Sneak Attacks . | . . . . Combat Hostiles . | . . . . Follow-up Attacks . | . . . . Damage Inflicted 986 | . 343 336 307 Guns 984 | . 341 336 307 Cannons . | . . . . Explosions . | . . . . Melee . | . . . . Ramming 2 | . 2 . . Kinetic 251 | . 133 49 69 Thermal 685 | . 208 287 190 Explosive . | . . . . Electromagnetic 48 | . . . 48 Impact . | . . . . Slashing . | . . . . Piercing . | . . . . Highest Corruption . | . . . . Average Corruption . | . . . . Corruption Purged . | . . . . Corruption Blocked . | . . . . Overload Shots . | . . . . Overflow Damage . | . . . . Projectiles . | . . . . Explosions . | . . . . Melee . | . . . . Knockbacks . | . . . . Impact . | . . . . Kinetic . | . . . . Secondary . | . . . . Self-Inflicted Damage 59 | . . . 59 Shots 1 | . . . 1 Rammed 1 | . 1 . . Targets Rammed 1 | . 1 . . Kicked . | . . . . Crushed . | . . . . Highest Temperature 195 | . 180 195 53 Average Temperature 49 | . 51 52 33 Received Heat Transfer 273 | . 93 90 90 Siege Activations . | . . . . Robots Corrupted . | . . . . Combat Hostiles . | . . . . Parts Fried . | . . . . Impact Corruptions . | . . . . Robots Melted . | . . . . Combat Hostiles . | . . . . Parts Melted 5 | . 2 3 . Heat Transferred 2282 | . 839 925 518 Parts Sabotaged . | . . . . Parts Stolen . | . . . . Parts Stripped . | . . . . Power Chain Reactions . | . . . . Alert | -11 -10 -10 -10 ------- Run | Yrd Mat Min Sub Peak Influence 269 | . 269 195 . Initial 60 | . . 60 . Average 105 | . 110 113 . Maximum Alert Level 1 | . 1 . . Low Security (%) 90 | 100 81 100 . Level 1 9 | . 18 . . Level 2 . | . . . . Level 3 . | . . . . Level 4 . | . . . . Level 5 . | . . . . High Security . | . . . . Max Security . | . . . . Squads Dispatched 2 | . 2 . . Investigation 1 | . 1 . . Extermination . | . . . . Reinforcement 1 | . 1 . . Assault . | . . . . Garrison . | . . . . Intercept . | . . . . Searches Triggered . | . . . . Construction Impeded . | . . . . Haulers Reinforced . | . . . . Active Scanning Responses . | . . . . Cargo Convoy Interrupts . | . . . . Stealth | -11 -10 -10 -10 --------- Run | Yrd Mat Min Sub Distress Signals . | . . . . Communications Jammed . | . . . . Distress Signals . | . . . . Times Spotted 39 | . 17 6 16 Peak Tracking Total 9 | . 4 3 9 Tactical Retreats 3 | . 1 1 1 Traps | -11 -10 -10 -10 ------- Run | Yrd Mat Min Sub Traps Triggered 1 | . 1 . . Indirectly . | . . . . Trap Hack Attempts . | . . . . Triggered . | . . . . Disarmed 2 | . 2 . . Reprogrammed . | . . . . Reused . | . . . . Traps Extracted . | . . . . Installed . | . . . . Triggered . | . . . . Machines | -11 -10 -10 -10 ---------- Run | Yrd Mat Min Sub Machines Disabled . | . . . . Max in Single Turn . | . . . . Machines Repaired . | . . . . Machines Dismantled . | . . . . Machines Sabotaged . | . . . . Overloaded Fab Kills . | . . . . Hacking | -11 -10 -10 -10 --------- Run | Yrd Mat Min Sub Machines Accessed 5 | . 5 . . Terminals 5 | . 5 . . Fabricators . | . . . . Repair Stations . | . . . . Recycling Units . | . . . . Scanalyzers . | . . . . Garrison Access . | . . . . Total Hacks 20 | . 20 . . Successful 15 | . 15 . . Failed 5 | . 5 . . Catastrophic . | . . . . Database Lockouts . | . . . . Manual . | . . . . Terminals 20 | . 20 . . Fabricators . | . . . . Repair Stations . | . . . . Recycling Units . | . . . . Scanalyzers . | . . . . Garrison Access . | . . . . Terminal Hacks 15 | . 15 . . Record 3 | . 3 . . Level Access Points 1 | . 1 . . Branch Access Points 1 | . 1 . . Locate Traps 2 | . 2 . . Disarm Traps 2 | . 2 . . Transport Status 1 | . 1 . . Hauler Manifests 1 | . 1 . . Registered Components 1 | . 1 . . Zone Layout 3 | . 3 . . Fabricator Hacks . | . . . . Repair Station Hacks . | . . . . Recycling Unit Hacks . | . . . . Scanalyzer . | . . . . Garrison Access Hacks . | . . . . Unauthorized Hacks . | . . . . Terminals . | . . . . Fabricators . | . . . . Repair Stations . | . . . . Recycling Units . | . . . . Scanalyzers . | . . . . Garrison Access . | . . . . Data Cores Recovered . | . . . . Used . | . . . . Hacking Detections 5 | . 5 . . Full Trace Events . | . . . . Feedback Events . | . . . . Feedback Blocked . | . . . . Robot Schematics Acquired . | . . . . Robots Built . | . . . . Authchips . | . . . . Time . | . . . . Total Robot Build Rating . | . . . . Part Schematics Acquired . | . . . . Parts Built . | . . . . Authchips . | . . . . Time . | . . . . Total Part Build Rating . | . . . . Parts Repaired . | . . . . Time . | . . . . Parts Recycled . | . . . . Recycled Matter . | . . . . Retrieved Matter . | . . . . Retrieved Components . | . . . . Parts Scanalyzed . | . . . . Part Schematics Acquired . | . . . . Parts Damaged . | . . . . Bothacking | -11 -10 -10 -10 ------------ Run | Yrd Mat Min Sub Used RIF Installer . | . . . . Robots Hacked . | . . . . Non-combat . | . . . . Combat . | . . . . Robot Hacks Applied . | . . . . Relay Couplers Released . | . . . . Fabnet Peak Effective % . | . . . . Robots Rewired . | . . . . Allies Hacked . | . . . . Hacks Repelled . | . . . . Allies | -11 -10 -10 -10 -------- Run | Yrd Mat Min Sub Total Allies . | . . . . Largest Group . | . . . . Highest-Rated Group . | . . . . Highest-Rated Ally . | . . . . Total Orders . | . . . . Ally Attacks . | . . . . Total Damage . | . . . . Kills . | . . . . Allies Corrupted . | . . . . Allies Melted . | . . . . Intel | -11 -10 -10 -10 ------- Run | Yrd Mat Min Sub Robot Analysis Total . | . . . . Derelict Logs Recovered 1 | . . 1 . Drone Launches . | . . . . Drone Recoveries . | . . . . Exploration | -11 -10 -10 -10 ------------- Run | Yrd Mat Min Sub Turns Passed 1825 | 73 653 530 569 Spaces Moved 1193 | 40 350 378 425 Core 35 | 9 . . 26 Treads 381 | 31 350 . . Legs 439 | . . 378 61 Wheels 338 | . . . 338 Hover . | . . . . Flight . | . . . . Fastest Speed 50 | 50 160 120 110 Average Speed 130 | 141 160 120 114 Slowest Speed 160 | 160 160 120 150 Overloaded Moves . | . . . . Propulsion Burnouts . | . . . . Robots Hopped . | . . . . Cave-ins Triggered . | . . . . Exploration Rate (%) 42 | 4 66 74 24 Regions Visited 3 Branch Regions 2 Pre-discovered Areas 1 | . . 1 . Known Exits Taken 2 | . 1 1 . Unknown Exits Taken 1 | 1 . . . Scrap Searched 3 | . . 1 2 Spaces Dug . | . . . . Terrain Destroyed 3 | . . . 3 Melee . | . . . . Projectile . | . . . . AOE 3 | . . . 3 Terrain Rammed . | . . . . Walls Destroyed . | . . . . Machines Disabled . | . . . . Actions | -11 -10 -10 -10 --------- Run | Yrd Mat Min Sub Total 1360 | 57 396 420 487 Wait 31 | . 9 15 7 Move 1190 | 39 349 377 425 Hop . | . . . . Pick Up 36 | 12 4 4 16 Fast Attach . | . . . . Attach 20 | 6 1 3 10 Detach . | . . . . Swap 7 | . 3 2 2 Drop 16 | . 3 1 12 Fire 59 | . 26 18 15 Melee . | . . . . Ram . | . . . . Kick . | . . . . Crush 1 | . 1 . . Escape Stasis . | . . . . Rewire . | . . . . Trap . | . . . . Miscellaneous . | . . . . Route ------- -11/Scrapyard -10/Materials (discovered 4 exits: *Mat x3 / *Min) -10/Mines (discovered 2 exits: *Mat / *Sub) -10/Subcaves History --------- Turn | Location | Event 18 | -11/Scrapyard | Discovered new exit (range 15) 74 | -11/Scrapyard | Entered Materials 219 | -10/Materials | Identified exit to Materials 314 | -10/Materials | Build established: Mutant 355 | -10/Materials | Identified exit to Mines 727 | -10/Materials | Entered Mines 778 | -10/Mines | Lost 3 parts (2n1w) 847 | -10/Mines | Identified exit to Subcaves 1004 | -10/Mines | Found a hidden stash of uninstalled traps 1064 | -10/Mines | Learned location of Storage (-9) 1087 | -10/Mines | Discovered exit to Materials (range 8) 1136 | -10/Mines | Assembled infested the area 1166 | -10/Mines | Found a damaged Exp. Sensor Array with a note attached 1168 | -10/Mines | Found Prototype Device 1257 | -10/Mines | Entered Subcaves 1267 | -10/Subcaves | Core integrity fell below 50% 1341 | -10/Subcaves | Ambushed by swarm of Subdwellers 1341 | -10/Subcaves | Ambushed by Subdwellers from Twisted Machinery 1341 | -10/Subcaves | Ambushed by Subdwellers from Twisted Machinery 1345 | -10/Subcaves | Ambushed by Subdwellers from Twisted Machinery 1345 | -10/Subcaves | Ambushed by Subdwellers from Twisted Machinery 1366 | -10/Subcaves | Core integrity fell below 20% 1396 | -10/Subcaves | Lost 6 parts (1p2n1u2w) 1410 | -10/Subcaves | Identified Exp. Sensor Array 1594 | -10/Subcaves | Build established: Subdweller-Mutant 1605 | -10/Subcaves | A swath of the cavern ceiling suddenly collapsed 1826 | -10/Subcaves | Destroyed self with Subdweller Shrapnel Launcher Last Messages --------------- 01574_ Acquired Spk. Treads. A swath of the cavern ceiling suddenly collapses. 01648_ PZ-O6P(g) triggered Shrapnel Trap. 01648_ An expanding cloud of shrapnel blasts out in all directions. 01648_ PZ-O6P(g) destroyed. 01666_ Sub. Monowheel shoots sparks and powers down. 01692_ Dropped Spk. Treads. 01693_ Acquired Sub. Monowheel. 01695_ Dropped Broken Sub. Monowheel. 01697_ Acquired Spk. Treads. 01700_ Sub. Power Source shoots sparks and powers down. 01700_ Dropped Broken Sub. Power Source. 01705_ Acquired Sub. Power Source. 01780_ Acquired 20 matter. 01813_ Flight Unit fries itself beyond repair. 01826_ S-10 Pest destroyed. Map ----- +----------------------------------------------------+ | #### ##??#"" # #?????????????? | | ##?# #???## ###### #??????????????? | | #?####????## ###""## ???????????????? | | #??????????# "##""##???? ??????????????? | | ##?????????# "#""#??????????????????????? | | ##????????## #"#"###???????????????????? | | ## ##????????## "## ##??????????????????? | | #?# #?????????# " #??????????????????? | | % #?# ######????## ##??????????????????? | | &!## ### ## ##????# ###???????????????????? | | &### ## ##??# ##?????????????????????? | | ##?# #??## ##??????????????????????? | | ### ##???####???????????????????????? | | !### #### #########???????????????????????????? | | &### ##??####??### ##??????????????????????????? | | !&#####??#####?## #???????? ##???????????????? | | !!*##????# ### #??????## ????????????????? | | ###### #??????#%%#?????????????????? | | # ## ##???## #??????????????????? | | # #### #??????????????????? | | # #??????????????????? | | # "" #??????????????????? | | # "#?????????????????????? | | ### ### ##["#?????????????????????? | | ##?#####?# ##!&##?????????????????????? | | #####????????# ####@;####### ?????? | | ##???????????# #??# % ?????? | | #??????????? ##?#! ; #### #?????????? | | ?????????? #??######????????? #?????????? | | ????????? ## #????????????????????????????? | | ???????? ?# #????????????????????????????? | | ??????? ??#&% #????????????????????????????? | | ??????? ?? = #????????????????????????????? | | ??????? ?? #????????????????????????????? | | ???????? ?? #????????????????????????????? | | ????????????? ????????????????????????????? | | ????????????? ????????????????????????????? | | ?????????????? ?????????????????????????????? | | ##???????????????????????????????????????????????? | | ####????????????????????????????????????????????? | | #????????????????????????????????????????????? | | #?????????????????????????????????????????????? | | #?????????????????????????????????????????????? | | # # #????????????????????????????????????????? | | #????????????????????????????????????????? | | ## #???????????????????????????????????????? | | #??# #???????????????????????????????????????? | | ###?????#????????????????????????????????????????? | | #????????????????????????????????????????????????? | | ?????????????????????????????????????????????????? | +----------------------------------------------------+ Best States ------------- Heat Dissipation 35 Energy Generation 15 Energy Capacity 250 Matter Stores 300 Matter Capacity 300 Sight Range 16 Robot Scan Range 20 Terrain Scan Density 10 Armor Coverage 800 Evasion (%) 55 Recoil Reduction 2 Item Schematics ----------------- None Robot Schematics ------------------ None Fabricated ------------ Nothing Alien Tech Used ----------------- None Achievements -------------- None Challenges ------------ None Game ------ Seed SwarmSubatomicCompactor Manual? 0 Play Time 00:16:37 Cumulative 82.9 hours Start 2024.02.27 @ 20:38:05 End 2024.02.27 @ 20:52:27 Sessions 1 Manual Loads 0 Difficulty Rogue Special Mode None Game No. 99 Rogue 99 Adventurer 0 Explorer 0 Win Type - Total 0 Types 0/0/0/0/0/0/0/0/0 Lore% 44 Gallery% 48 Achievement% 40 Wizard Run 0 Options --------- Layout 2 ASCII 0 Keyboard 0 Movement Numpad Keybinds 0 Fullscreen 1 Font 24/Smallcaps Map View 50x44 Zoom Use 0% Tactical HUD 1 Map Filters NONE Filters NONE Steam 1 RUN: 879f21c0-ae66-4d0b-92cb-e0767b070f37